bitfinex/quotes_SOLUSD_20241016
["timestamp","ask_amount","ask_price","bid_price","bid_amount"]
[1729089725338,16.166,154.65,154.55,22.6457]
[1729089725339,6.4684,154.6,154.55,22.6457]
[1729089725745,6.4692,154.58,154.54,6.4707]
[1729089726467,6.273,154.61,154.49,7.3046282]
[1729089726768,6.273,154.61,154.49,0.6396282]
[1729089726769,6.4717,154.52,154.49,0.6396282]
[1729089726959,16.1747,154.57,154.49,7.36277526]
[1729089727268,23.776884,154.59,154.49,7.36277526]
[1729089727269,6.4724,154.5,154.49,0.6396282]
[1729089728045,22.4478,154.5,154.49,0.6396282]
[1729089728770,29.900084,154.49,154.34,16.8367282]
[1729089728939,6.4764,154.41,154.35,6.72496598]
[1729089729143,6.4767,154.4,154.34,23.3155282]
[1729089729544,6.4772,154.39,154.34,16.8367282]
[1729089729739,6.4765,154.41,154.34,7.1187282]
[1729089730045,17.60475566,154.43,154.34,0.6396282]
[1729089730241,16.1901,154.42,154.34,0.6396282]
[1729089730472,6.4772,154.39,154.34,0.6396282]
[1729089730660,17.60475566,154.43,154.34,0.6396282]
[1729089730862,6.4772,154.39,154.34,0.6396282]
[1729089731067,17.60475566,154.43,154.34,0.6396282]
[1729089731263,24.08015566,154.43,154.34,16.8370282]
[1729089731463,6.4751,154.44,154.37,6.4775]
[1729089731767,6.1232,154.49,154.35,0.1]
[1729089731969,15.9754,154.5,154.4,16.1914]
[1729089732152,6.2587,154.53,154.45,6.4744]
[1729089732153,6.4717,154.52,154.45,6.4744]
[1729089732359,6.472,154.51,154.45,6.4744]
[1729089733154,6.4727,154.5,154.44,6.475]
[1729089733355,6.4727,154.5,154.44,6.4749]
[1729089733572,6.4727,154.5,154.43,22.6629]
[1729089733769,6.472,154.51,154.44,6.4749]
[1729089733953,6.4712,154.53,154.46,6.4739]
[1729089734149,6.72529188,154.56,154.41,0.1]
[1729089734356,6.3122,154.57,154.46,6.1598]
[1729089734571,6.47,154.56,154.5,6.4724]
[1729089734778,6.3122,154.57,154.49,16.1819]
[1729089735277,6.4694,154.58,154.49,16.1819]
[1729089735567,22.963,154.59,154.53,6.4711]
[1729089735753,16.4941,154.59,154.49,16.1819]
[1729089735950,12.665,154.61,154.52,16.1785]
[1729089736258,15.2191,154.63,154.57,6.4691]
[1729089736259,6.4674,154.63,154.57,6.4691]
[1729089736563,6.0145,154.66,154.6,6.4682]
[1729089736763,6.4658,154.66,154.61,6.4678]
[1729089736979,6.4658,154.66,154.58,16.1721]
[1729089737358,15.2191,154.67,154.54,16.1761]
[1729089737765,4.87184685,154.66,154.52,6.5504]
[1729089737953,14.49228572,154.65,154.49,16.1813]
[1729089738172,6.469,154.59,154.49,16.1813]
[1729089738472,6.1166,154.62,154.49,16.1813]
[1729089738660,6.47,154.56,154.49,22.6539]
[1729089739177,6.4709,154.54,154.49,16.1813]
[1729089739350,6.4713,154.53,154.46,6.4737]
[1729089739557,6.4719,154.52,154.45,16.1858]
[1729089739752,6.4719,154.52,154.45,22.6599]
[1729089740173,6.4702,154.56,154.5,6.4724]
[1729089740388,23.776884,154.56,154.48,16.1828]
[1729089740588,6.4716,154.53,154.48,16.1828]
[1729089740764,6.4725,154.5,154.45,6.4745]
[1729089740964,6.472,154.51,154.45,6.4745]
[1729089741572,6.472,154.51,154.46,6.4741]
[1729089741772,6.4712,154.54,154.47,16.1839]
[1729089742067,16.1704,154.61,154.5,16.1806]
[1729089742271,16.1704,154.61,154.52,6.4716]
[1729089742668,6.4682,154.61,154.55,6.4701]
[1729089742989,16.1658,154.65,154.6,6.4682]
[1729089742990,6.4665,154.65,154.6,6.4682]
[1729089743192,6.3337,154.67,154.57,16.1736]
[1729089743489,6.3337,154.67,154.58,6.4689]
[1729089743993,6.3337,154.67,154.57,22.6427]
[1729089744486,6.4672,154.63,154.57,22.6427]
[1729089744793,6.4672,154.63,154.58,6.469]
[1729089745186,6.3337,154.67,154.58,6.469]
[1729089745187,6.4666,154.64,154.58,6.469]
[1729089745492,6.4654,154.67,154.61,6.4678]
[1729089745674,6.72640384,154.69,154.61,6.4678]
[1729089745881,54.5504,154.72,154.61,6.4678]
[1729089746069,6.467,154.63,154.59,16.1707]
[1729089746468,0.1,154.68,154.55,16.1751]
[1729089746689,6.4684,154.6,154.55,16.1751]
[1729089746891,6.4691,154.58,154.53,6.4711]
[1729089747186,16.1654,154.66,154.54,16.1765]
[1729089747388,6.4677,154.62,154.56,6.4695]
[1729089747572,23.776884,154.65,154.55,6.4703]
[1729089747769,6.4684,154.6,154.54,16.1765]
[1729089747973,23.776884,154.65,154.54,16.1765]
[1729089747974,6.4678,154.62,154.54,16.1765]
[1729089748387,6.4678,154.62,154.5,6.3377]
[1729089748388,16.1654,154.66,154.58,6.4691]
[1729089748587,6.4674,154.62,154.56,22.6435]
[1729089748988,6.4679,154.61,154.56,22.6435]
[1729089749191,16.1654,154.66,154.56,16.174]
[1729089749401,6.4683,154.6,154.56,16.174]
[1729089749771,6.4683,154.6,154.55,6.4703]
[1729089750185,6.4679,154.61,154.55,6.4703]
[1729089750879,6.4679,154.61,154.56,6.4695]
[1729089751499,6.4676,154.62,154.57,6.4693]
[1729089751698,23.776884,154.65,154.55,16.1751]
[1729089751902,6.4679,154.61,154.56,6.4699]
[1729089752994,6.4683,154.6,154.55,22.6454]
[1729089753597,6.4688,154.59,154.55,16.1751]
[1729089753798,21.5417,154.63,154.52,16.1788]
[1729089754005,21.5417,154.63,154.56,16.1741]
[1729089754006,6.4674,154.63,154.56,16.1741]
[1729089754189,6.4674,154.63,154.58,6.4691]
[1729089754387,6.4674,154.62,154.58,6.4691]
[1729089755900,6.4683,154.6,154.56,16.1741]
[1729089756197,6.469,154.59,154.54,6.4705]
[1729089757003,6.4682,154.61,154.55,6.47]
[1729089757301,6.4684,154.6,154.55,6.47]
[1729089758892,16.1662,154.65,154.53,16.1778]
[1729089759120,30.59737172,154.66,154.54,6.4704]
[1729089759291,6.4691,154.58,154.54,6.4704]
[1729089759596,23.776884,154.62,154.53,22.6489]
[1729089759902,16.1681,154.63,154.53,22.6489]
[1729089760081,6.4691,154.58,154.53,22.6489]
[1729089760281,6.4696,154.57,154.52,6.4713]
[1729089760489,23.776884,154.6,154.5,22.3185]
[1729089760683,16.1704,154.61,154.47,22.6573]
[1729089760684,6.4717,154.52,154.47,22.6573]
[1729089760885,23.776884,154.58,154.47,22.6573]
[1729089761189,23.776884,154.58,154.43,16.5256]
[1729089761190,16.1773,154.54,154.43,22.6626]
[1729089761398,16.1773,154.54,154.42,6.1724]
[1729089761399,23.876884,154.53,154.42,6.1724]
[1729089761577,23.876884,154.53,154.4,16.1912]
[1729089761578,6.4745,154.46,154.41,6.4761]
[1729089761774,6.4749,154.45,154.4,22.6678]
[1729089761977,23.776884,154.5,154.4,22.6678]
[1729089761978,6.5041,154.49,154.4,22.6678]
[1729089762202,6.475,154.44,154.4,16.1912]
[1729089762388,6.4746,154.45,154.4,16.1912]
[1729089762708,6.4746,154.45,154.4,22.6675]
[1729089764004,6.4731,154.49,154.44,6.4747]
[1729089764191,6.2614,154.54,154.45,16.1856]
[1729089764394,6.2614,154.54,154.43,6.475]
[1729089764587,6.2614,154.54,154.42,6.4758]
[1729089764588,20.97279518,154.53,154.42,6.4758]
[1729089764795,6.4739,154.47,154.41,22.6655]
[1729089765929,6.4733,154.48,154.41,16.1897]
[1729089766616,6.4728,154.5,154.44,6.4746]
[1729089767504,6.4728,154.5,154.45,6.4744]
[1729089768116,22.89682616,154.53,154.41,6.4759]
[1729089768117,6.4743,154.46,154.41,6.4759]
[1729089768411,6.4743,154.46,154.4,16.1912]
[1729089768908,6.4743,154.46,154.36,32.3911]
[1729089768909,6.4763,154.41,154.36,22.6728]
[1729089769908,16.1201,154.47,154.38,16.193]
[1729089770107,6.4749,154.45,154.4,6.4763]
[1729089770414,6.4742,154.46,154.41,6.4761]
[1729089770714,16.1201,154.47,154.39,6.4767]
[1729089770918,16.1201,154.47,154.34,39.75899429]
[1729089770919,6.4762,154.42,154.37,22.6721]
[1729089771090,6.475,154.44,154.39,6.4769]
[1729089771410,23.776884,154.46,154.37,22.6722]
[1729089771625,23.776884,154.46,154.37,16.1944]
[1729089771796,6.477,154.4,154.35,6.4787]
[1729089772410,6.477,154.4,154.36,6.4783]
[1729089772601,6.477,154.4,154.34,16.8371282]
[1729089772917,6.4763,154.41,154.36,6.4783]
[1729089773789,22.5904,154.45,154.34,16.8371282]
[1729089773988,6.4765,154.41,154.35,6.4787]
[1729089774210,23.776884,154.44,154.35,6.4787]
[1729089774415,6.4771,154.39,154.35,6.4787]
[1729089774612,6.4767,154.4,154.35,6.4787]
[1729089774919,6.4767,154.4,154.34,16.8371282]
[1729089774920,6.4777,154.38,154.34,0.6396282]
[1729089775223,6.4784,154.36,154.34,0.6396282]
[1729089775391,6.478,154.37,154.34,0.6396282]
[1729089775591,16.1915,154.41,154.34,0.6396282]
[1729089775813,6.4784,154.36,154.34,0.6396282]
[1729089776188,16.1915,154.41,154.34,0.6396282]
[1729089776189,6.4787,154.35,154.34,0.6396282]
[1729089778221,23.876884,154.4,154.34,0.6396282]
[1729089778731,6.4787,154.35,154.34,0.6396282]
[1729089778909,16.193,154.39,154.34,0.6396282]
[1729089779105,6.4784,154.36,154.34,0.6396282]
[1729089779307,6.4779,154.37,154.34,0.6396282]
[1729089779516,6.73302359,154.41,154.34,0.6396282]
[1729089779715,15.0335,154.42,154.34,0.6396282]
[1729089779914,6.4763,154.41,154.35,6.4784]
[1729089780430,15.0335,154.42,154.35,6.4786]
[1729089780718,6.5034,154.45,154.34,0.6396282]
[1729089781026,16.2908,154.41,154.34,0.6396282]
[1729089781230,6.4787,154.35,154.34,0.6396282]
[1729089781728,30.255584,154.35,154.34,0.6396282]
[1729089783226,30.255584,154.35,154.25,16.207]
[1729089783227,23.776884,154.34,154.25,16.207]
[1729089783399,23.776884,154.34,154.23,6.4837]
[1729089783400,40.075184,154.34,154.23,6.4837]
[1729089783602,39.975184,154.34,154.23,6.4837]
[1729089783916,39.975184,154.34,154.22,22.708]
[1729089784142,6.4809,154.3,154.24,6.4829]
[1729089784325,6.4796,154.34,154.29,6.4811]
[1729089784821,21.9084,154.36,154.23,32.4176]
[1729089784822,6.4788,154.35,154.3,6.4807]
[1729089785125,6.4788,154.35,154.29,6.4812]
[1729089785605,6.4792,154.34,154.29,6.4812]
[1729089786005,6.4796,154.33,154.28,6.4816]
[1729089787113,6.4811,154.3,154.24,16.2081]
[1729089787501,6.4811,154.3,154.26,6.4825]
[1729089788236,6.4811,154.3,154.25,6.4829]
[1729089788415,32.1925,154.36,154.24,16.2081]
[1729089788416,6.4816,154.29,154.24,16.2081]
[1729089788810,6.4816,154.29,154.24,22.6914]
[1729089789735,23.776884,154.33,154.24,22.6914]
[1729089789903,6.4808,154.31,154.26,6.4825]
[1729089790106,16.199,154.34,154.25,6.4828]
[1729089790107,6.4809,154.3,154.25,6.4828]
[1729089790726,6.4788,154.35,154.31,6.4804]
[1729089790908,22.5888,154.4,154.35,6.4787]
[1729089791225,15.978,154.4,154.29,21.5968]
[1729089791424,6.4763,154.41,154.36,6.4782]
[1729089791614,6.4758,154.42,154.37,6.4778]
[1729089791819,35.48436374,154.44,154.39,6.477]
[1729089792005,35.48436374,154.44,154.31,32.5007]
[1729089792006,22.2939,154.49,154.33,0.1]
[1729089792205,6.4738,154.47,154.42,6.4757]
[1729089792406,6.4745,154.45,154.4,6.4766]
[1729089793140,38.477,154.49,154.39,16.1927]
[1729089793330,6.4762,154.41,154.36,16.1957]
[1729089794336,9.62043887,154.48,154.31,32.4007]
[1729089794515,22.2939,154.49,154.38,16.1927]
[1729089794828,6.4741,154.47,154.4,16.1908]
[1729089795033,6.4741,154.47,154.41,6.4762]
[1729089795333,6.4732,154.49,154.44,6.4748]
[1729089795628,6.4717,154.52,154.47,6.4736]
[1729089796007,6.472,154.51,154.46,16.1853]
[1729089796207,6.1674,154.53,154.41,32.3812]
[1729089796208,6.1674,154.53,154.44,6.4749]
[1729089796425,6.4729,154.49,154.44,6.4749]
[1729089796610,6.4724,154.51,154.43,16.1885]
[1729089796814,6.4717,154.52,154.46,6.4741]
[1729089797029,6.4712,154.53,154.48,6.4732]
[1729089797333,6.4717,154.52,154.47,6.4737]
[1729089797533,16.053,154.54,154.45,16.1855]
[1729089797747,6.4721,154.51,154.45,22.6598]
[1729089798230,6.4721,154.51,154.46,6.4741]
[1729089798434,6.4726,154.5,154.45,16.1855]
[1729089798636,6.4733,154.49,154.42,22.6649]
[1729089798939,6.4733,154.48,154.42,22.6649]
[1729089799429,6.4742,154.46,154.41,6.4761]
[1729089799810,6.4737,154.47,154.41,6.4761]
[1729089800225,16.1797,154.52,154.39,16.1925]
[1729089800407,6.4733,154.48,154.42,6.4756]
[1729089800611,23.776884,154.51,154.41,16.1898]
[1729089800831,6.474,154.47,154.41,22.666]
[1729089801032,23.776884,154.52,154.38,22.279]
[1729089801233,16.182,154.5,154.38,38.4725]
[1729089801445,23.776884,154.52,154.4,16.1908]
[1729089801615,9.52043887,154.53,154.4,16.1908]
[1729089801616,6.4725,154.5,154.45,6.4745]
[1729089802941,24.56290401,154.59,154.46,16.4858]
[1729089803115,24.56290401,154.59,154.53,6.4709]
[1729089803116,11.25446103,154.58,154.53,6.4709]
[1729089803320,0.5896,154.59,154.52,16.1784]
[1729089803515,0.5896,154.59,154.56,6.4698]
[1729089803719,0.5896,154.59,154.58,6.4691]
[1729089803921,0.5896,154.59,154.57,6.4694]
[1729089804316,0.5896,154.59,154.58,6.4691]
[1729089805123,0.5896,154.59,154.56,6.4696]
[1729089805332,0.5896,154.59,154.57,6.4693]
[1729089805837,0.5896,154.59,154.58,6.4691]
[1729089807442,0.5896,154.59,154.57,6.4693]
[1729089807652,0.5896,154.59,154.56,6.4699]
[1729089808224,0.5896,154.59,154.58,6.4691]
[1729089808524,0.5896,154.59,154.55,16.1757]
[1729089809045,0.5896,154.59,154.57,6.4695]
[1729089809225,0.5896,154.59,154.56,6.4699]
[1729089809426,0.5896,154.59,154.55,16.1757]
[1729089809831,0.5896,154.59,154.48,38.6138]
[1729089810028,6.47,154.56,154.51,6.472]
[1729089810344,6.4704,154.55,154.5,6.4724]
[1729089810515,0.5896,154.59,154.48,22.4312]
[1729089810719,6.4713,154.53,154.48,22.6554]
[1729089810942,6.472,154.52,154.45,16.1863]
[1729089811141,0.5896,154.59,154.45,16.1863]
[1729089811142,6.4712,154.53,154.45,16.1863]
[1729089811659,6.4696,154.57,154.52,6.4716]
[1729089811848,6.4693,154.58,154.53,6.471]
[1729089812047,6.4693,154.58,154.51,16.1796]
[1729089812048,0.5896,154.59,154.54,6.4707]
[1729089812341,0.5896,154.59,154.51,22.6516]
[1729089813215,6.4706,154.55,154.49,6.4725]
[1729089813528,0.5896,154.59,154.48,16.1831]
[1729089813728,16.1736,154.58,154.48,16.1831]
[1729089813944,6.4721,154.51,154.46,6.4741]
[1729089814165,6.4725,154.5,154.45,22.6606]
[1729089814356,16.1776,154.54,154.4,32.3822]
[1729089814519,16.1776,154.54,154.42,6.4757]
[1729089814520,6.4738,154.47,154.42,6.4757]
[1729089814722,16.18,154.52,154.41,16.1897]
[1729089815048,6.4745,154.45,154.41,16.1897]
[1729089815426,6.4758,154.42,154.38,16.1935]
[1729089815628,16.1843,154.48,154.37,6.4777]
[1729089815629,6.4756,154.43,154.37,6.4777]
[1729089815946,6.4759,154.42,154.37,6.4777]
[1729089816143,6.4763,154.41,154.36,6.4783]
[1729089817055,6.72675281,154.48,154.38,16.1936]
[1729089817387,16.1804,154.51,154.36,32.3897]
[1729089817537,9.52043887,154.5,154.32,39.1179531]
[1729089817850,6.479,154.35,154.28,12.6165]
[1729089818028,6.479,154.35,154.29,22.6831]
[1729089818229,9.52043887,154.41,154.29,16.2023]
[1729089818230,6.4794,154.34,154.29,16.2023]
[1729089818426,16.1925,154.4,154.22,65.68957634]
[1729089818427,43.776884,154.4,154.25,16.2067]
[1729089818731,43.776884,154.4,154.2,16.2117]
[1729089818732,23.776884,154.36,154.2,16.2117]
[1729089818941,6.4813,154.29,154.23,6.4837]
[1729089819136,16.1958,154.37,154.24,16.2082]
[1729089819436,6.4814,154.29,154.24,16.2082]
[1729089819845,6.4808,154.31,154.24,16.2082]
[1729089820429,6.4808,154.31,154.24,22.6914]
[1729089820653,6.4799,154.33,154.26,6.4825]
[1729089821137,6.4801,154.32,154.24,22.6912]
[1729089821460,6.4801,154.32,154.24,16.2082]
[1729089821639,6.71983139,154.37,154.24,16.2082]
[1729089821844,6.4788,154.35,154.22,0.1]
[1729089822049,6.4788,154.35,154.29,6.4811]
[1729089822440,13.19803139,154.37,154.29,6.4811]
[1729089822646,6.71983139,154.37,154.28,6.4816]
[1729089822966,6.7219398,154.38,154.28,6.4816]
[1729089823335,6.4782,154.37,154.3,6.4808]
[1729089823535,6.4783,154.36,154.3,6.4808]
[1729089824455,6.4783,154.36,154.28,6.4814]
[1729089824959,6.4789,154.35,154.28,6.4814]
[1729089825538,6.4789,154.35,154.27,16.2043]
[1729089825744,6.4789,154.35,154.29,6.4812]
[1729089826566,6.4779,154.37,154.3,22.6822]
[1729089826766,6.4783,154.36,154.3,22.6822]
[1729089827440,6.478,154.37,154.31,6.4803]
[1729089827765,6.477,154.4,154.33,6.4795]
[1729089827967,6.73829841,154.42,154.35,6.4787]
[1729089828274,6.4758,154.42,154.35,6.4783]
[1729089828442,22.9333,154.46,154.33,16.1984]
[1729089828639,0.1,154.44,154.33,16.1984]
[1729089829135,6.4774,154.39,154.32,6.4799]
[1729089829342,6.4776,154.38,154.32,6.48]
[1729089829740,6.4762,154.42,154.35,6.4785]
[1729089829939,43.776884,154.44,154.33,6.4792]
[1729089830347,6.4775,154.38,154.33,6.4792]
[1729089830837,6.4785,154.36,154.3,6.4806]
[1729089831137,6.4771,154.39,154.32,6.4796]
[1729089831341,92.339684,154.44,154.32,6.4796]
[1729089831639,43.776884,154.4,154.27,38.8457]
[1729089831838,43.776884,154.4,154.28,6.4815]
[1729089831839,6.4793,154.34,154.28,6.4815]
[1729089832053,6.4786,154.36,154.3,6.4806]
[1729089832257,6.4788,154.35,154.3,6.4806]
[1729089833550,6.4788,154.35,154.29,6.4812]
[1729089835052,43.776884,154.4,154.31,6.4804]
[1729089835053,6.4783,154.36,154.31,6.4804]
[1729089838368,6.4789,154.35,154.3,22.6828]
[1729089838575,16.1938,154.38,154.27,6.5671]
[1729089838749,16.1938,154.38,154.3,6.4805]
[1729089839959,16.1938,154.38,154.27,6.5671]
[1729089840267,50.49681482,154.4,154.27,6.5671]
[1729089840268,6.71993082,154.4,154.28,32.4068]
[1729089840463,16.19,154.42,154.33,16.1982]
[1729089840642,22.9084342,154.42,154.33,16.1982]
[1729089841360,6.4775,154.38,154.33,22.6777]
[1729089841559,6.4771,154.39,154.34,6.479]
[1729089841863,6.4776,154.38,154.33,22.6777]
[1729089842171,6.4782,154.37,154.33,16.1982]
[1729089842377,6.4791,154.35,154.3,22.6826]
[1729089842972,6.4784,154.36,154.3,22.6823]
[1729089843148,6.4796,154.33,154.27,22.7722]
[1729089844045,6.4806,154.31,154.26,6.4821]
[1729089844247,6.4806,154.31,154.24,16.2082]
[1729089844467,6.4806,154.31,154.27,6.482]
[1729089844770,22.8147,154.36,154.27,6.482]
[1729089844958,6.4801,154.32,154.28,6.4816]
[1729089845161,22.8147,154.36,154.26,16.2057]
[1729089845355,6.48,154.32,154.28,6.4816]
[1729089845565,22.8147,154.36,154.23,6.6252]
[1729089845755,6.4817,154.29,154.24,6.4833]
[1729089846169,6.4807,154.31,154.26,6.4824]
[1729089846556,31.9351,154.34,154.26,6.4824]
[1729089846755,6.4808,154.3,154.25,6.4829]
[1729089847263,6.4816,154.29,154.24,6.4833]
[1729089847456,6.4816,154.29,154.25,6.4829]
[1729089847756,31.9351,154.34,154.26,6.4824]
[1729089848180,31.9351,154.34,154.23,22.8343]
[1729089848478,31.9351,154.34,154.25,6.4829]
[1729089848683,6.4814,154.29,154.24,6.4832]
[1729089848856,31.9351,154.34,154.23,22.8343]
[1729089849060,15.7364,154.34,154.25,16.2067]
[1729089849264,6.4804,154.31,154.27,6.482]
[1729089849683,6.4804,154.31,154.25,16.2067]
[1729089849983,31.9344,154.34,154.25,16.2067]
[1729089850358,6.4813,154.29,154.24,6.4833]
[1729089850581,6.4813,154.29,154.25,6.4829]
[1729089850886,15.7364,154.34,154.27,6.482]
[1729089851074,15.7364,154.34,154.22,32.4204]
[1729089851281,6.4797,154.33,154.28,22.6856]
[1729089851786,6.6181,154.36,154.26,6.4825]
[1729089851965,6.4805,154.31,154.26,6.4825]
[1729089852163,6.6181,154.36,154.24,16.2074]
[1729089852164,16.198,154.34,154.24,16.2074]
[1729089852362,16.198,154.34,154.21,31.9902]
[1729089852587,16.2011,154.31,154.21,16.2114]
[1729089852794,6.4821,154.27,154.22,6.4842]
[1729089853300,6.4821,154.27,154.21,16.2114]
[1729089853665,16.2011,154.31,154.23,6.4836]
[1729089854068,16.2011,154.31,154.21,16.2114]
[1729089854365,6.4815,154.29,154.23,6.4836]
[1729089854785,6.4806,154.31,154.26,6.4825]
[1729089854969,6.6181,154.36,154.28,16.2034]
[1729089855180,15.1497,154.38,154.22,68.91865074]
[1729089855181,15.1497,154.38,154.31,6.48]
[1729089855473,6.4797,154.33,154.28,6.4815]
[1729089855673,6.72475814,154.37,154.26,16.2055]
[1729089856090,6.4796,154.33,154.28,6.4816]
[1729089857392,6.4803,154.32,154.26,22.6877]
[1729089857607,6.1972,154.32,154.23,16.2093]
[1729089857896,6.4821,154.28,154.23,22.693]
[1729089858085,6.4809,154.3,154.25,6.4825]
[1729089858772,6.1972,154.32,154.23,16.2093]
[1729089859090,6.1972,154.32,154.25,6.4829]
[1729089859291,6.4809,154.3,154.25,6.4829]
[1729089859983,6.4804,154.32,154.26,6.4824]
[1729089860174,4.80983911,154.31,154.23,16.2093]
[1729089860492,11.29073911,154.3,154.25,6.4829]
[1729089860696,11.29073911,154.3,154.23,16.2093]
[1729089860697,6.4809,154.3,154.26,6.4825]
[1729089861608,4.82098589,154.29,154.27,6.482]
[1729089861777,6.48,154.32,154.27,6.482]
[1729089862089,7.92782436,154.34,154.27,6.482]
[1729089862090,4.8213658,154.31,154.29,6.4809]
[1729089862289,14.40632436,154.36,154.31,6.4801]
[1729089862598,12.54088412,154.35,154.31,6.4801]
[1729089862791,4.82341697,154.34,154.28,6.1166]
[1729089862992,4.82341697,154.33,154.32,6.48]
[1729089863301,6.4783,154.37,154.32,6.48]
[1729089863468,12.5507846,154.36,154.32,6.48]
[1729089863669,4.82718349,154.35,154.32,6.48]
[1729089863899,4.82718349,154.34,154.32,6.4798]
[1729089864073,14.40602436,154.37,154.32,6.4798]
[1729089864273,12.5518112,154.36,154.32,6.4798]
[1729089864592,12.5518112,154.35,154.32,6.4798]
[1729089864895,4.82761969,154.34,154.32,6.4798]
[1729089865196,4.82761969,154.33,154.32,6.4798]
[1729089865377,19.03352914,154.36,154.3,22.6816]
[1729089865584,12.55471864,154.35,154.3,22.6816]
[1729089865784,12.55471864,154.34,154.3,22.6816]
[1729089865993,4.82878044,154.33,154.3,22.6816]
[1729089866192,14.40652436,154.36,154.3,16.2011]
[1729089866372,12.55571873,154.35,154.32,6.4797]
[1729089866575,4.82912259,154.34,154.33,6.4795]
[1729089866793,14.40542436,154.38,154.33,6.4795]
[1729089866989,14.40542436,154.38,154.32,6.4799]
[1729089866990,12.55664142,154.37,154.32,6.4799]
[1729089867294,6.4787,154.35,154.3,22.6816]
[1729089867497,4.82947747,154.34,154.3,22.6816]
[1729089867689,6.4787,154.35,154.3,22.6816]
[1729089867880,4.82931214,154.34,154.3,22.6816]
[1729089868082,24.12172436,154.38,154.27,16.2049]
[1729089868287,6.4801,154.32,154.27,16.2049]
[1729089868479,6.4801,154.32,154.27,22.6867]
[1729089869207,6.481,154.3,154.25,6.4829]
[1729089869382,6.4816,154.29,154.24,6.4833]
[1729089869590,6.4817,154.28,154.24,6.4833]
[1729089869776,6.4817,154.28,154.23,16.2085]
[1729089870106,23.876884,154.32,154.18,0.6396282]
[1729089870399,6.4838,154.23,154.18,7.1255282]
[1729089870601,6.4834,154.24,154.19,6.4854]
[1729089870779,6.4834,154.24,154.2,6.485]
[1729089871097,6.483,154.25,154.2,6.485]
[1729089871281,16.2039,154.29,154.19,16.2131]
[1729089871606,12.53279667,154.28,154.19,16.2131]
[1729089871776,6.4834,154.24,154.19,16.2131]
[1729089872178,16.2039,154.29,154.19,16.2131]
[1729089872485,6.483,154.25,154.19,22.6985]
[1729089872687,16.2039,154.29,154.19,22.6985]
[1729089872688,6.4837,154.24,154.19,22.6985]
[1729089873084,6.4837,154.24,154.19,16.2131]
[1729089873284,16.2039,154.29,154.18,0.6396282]
[1729089873285,6.4842,154.22,154.18,0.6396282]
[1729089873497,24.13172436,154.29,154.18,16.8534282]
[1729089873706,12.52479358,154.28,154.18,16.8534282]
[1729089873897,6.4834,154.24,154.19,6.485]
[1729089874289,6.4829,154.26,154.22,6.4841]
[1729089874482,6.4821,154.27,154.22,6.4841]
[1729089874689,4.81597663,154.26,154.22,6.4841]
[1729089874886,6.4821,154.27,154.22,6.4841]
[1729089875102,6.4832,154.25,154.2,22.6965]
[1729089876109,6.4834,154.24,154.2,22.6965]
[1729089876812,16.203,154.3,154.2,22.6965]
[1729089876813,6.483,154.25,154.21,6.4845]
[1729089877108,6.4826,154.26,154.22,6.4842]
[1729089877281,6.4821,154.27,154.23,6.4836]
[1729089877479,6.4818,154.28,154.23,6.4836]
[1729089877698,4.81276292,154.27,154.22,16.2099]
[1729089877908,14.40762436,154.33,154.27,16.2052]
[1729089878214,6.4792,154.34,154.3,6.4808]
[1729089878502,6.4783,154.37,154.31,6.4804]
[1729089878708,30.50753249,154.38,154.3,16.2018]
[1729089878709,4.81620781,154.36,154.32,6.4798]